[Event "FIDE WSCC 65 2022"]
[Site "Assisi"]
[Date "2022.11.19"]
[Round "5.11"]
[White "Chan, Peng Kong"]
[Black "Renman, Nils-Gustaf"]
[Result "1/2-1/2"]
[ECO "A13"]
[WhiteElo "2149"]
[BlackElo "2320"]
[Annotator "TA"]
[PlyCount "73"]
[EventDate "2022.11.14"]
[EventType "swiss"]
[EventCountry "ITA"]
[SourceTitle "playchess.com"]
[Source "ChessBase"]
[SourceQuality "1"]
[TimeControl "40/5400+30:1800+30"]

{[%evp 12,73,44,45,54,54,61,59,64,64,70,66,80,74,77,34,35,35,41,40,46,42,48,47,43,48,54,40,52,52,52,52,68,50,84,49,70,66,50,47,120,81,119,82,78,0,41,34,30,21,21,0,21,0,0,0,5,0,5,0,6,0,18,0]} 1. Nf3 {[%emt 0:00:14]} d5 {[%emt 0:00:13]} 2. c4 {[%emt 0:00:10]} e6 {[%emt 0:00:18]} 3. g3 {[%emt 0:00:43]} Nf6 {[%emt 0:00:12]} 4. Bg2 {[%emt 0:00:20]} dxc4 {[%emt 0:02:14]} 5. Qa4+ {[%emt 0:02:13]} Bd7 {[%emt 0:04:20]} 6. Qxc4 {[%emt 0:00:09]} Bc6 {[%emt 0:00:12]} 7. O-O {[%emt 0:00:14]} a6 {[%emt 0:03:04] A13: English Opening: 1...e6.} 8. Qc2 {[%emt 0:00:40]} b5 {[%emt 0:02:54]} 9. a4 {[%emt 0:03:21]} b4 {[%emt 0:01:19] White is slightly better.} 10. d3 {[%emt 0:02:42]} Bb7 {[%emt 0:03:00]} 11. Nbd2 {[%emt 0:01:22] [#]} a5 $146 {[%emt 0:02:35]} ({Predecessor:} 11... Nbd7 12. a5 Be7 13. Nc4 O-O 14. e4 h6 15. Bf4 Rc8 16. Rfe1 g5 17. Be3 c5 {1-0 (30) Sunye Neto,J (2485)-Osipi,J (2144) Curitiba 2018}) 12. Nc4 {[%emt 0:01:36]} Be7 {[%emt 0:00:58]} 13. Bd2 {[%emt 0:17:35]} O-O {[%emt 0:00:36]} 14. Rac1 {[%emt 0:03:26]} c5 {[%emt 0:08:49]} 15. Rfd1 {[%emt 0:03:51]} Nbd7 {[%emt 0:08:48]} 16. e4 {[%emt 0:07:16]} Nb6 {[%emt 0:03:00]} 17. Nfe5 {[%emt 0:00:45]} Nxc4 {[%emt 0:06:12]} 18. Nxc4 {[%emt 0:00:14]} Nd7 {[%emt 0:00:46]} 19. Be3 {[%emt 0:01:04]} Qc7 {[%emt 0:03:03]} 20. f4 {[%emt 0:03:24]} Rfc8 {[%emt 0:01:12]} 21. b3 {[%emt 0:03:41]} Bf6 {[%emt 0:11:31]} 22. e5 {[%emt 0:02:26]} Be7 {[%emt 0:00:07]} 23. Be4 {[%emt 0:03:02]} f5 {[%emt 0:03:47]} 24. Bxb7 {[%emt 0:04:55] White has more active pieces.} (24. exf6 $5 Nxf6 25. Bxb7 Qxb7 26. Re1 $14) 24... Qxb7 {[%emt 0:00:02]} 25. Qg2 {[%emt 0:00:09]} Qd5 {[%emt 0:12:05]} (25... Qa6 $14) 26. Bf2 {[%emt 0:01:49]} g6 {[%emt 0:02:00]} 27. Rc2 {[%emt 0:04:19]} Ra6 {[%emt 0:03:24]} 28. Ne3 {[%emt 0:06:23]} (28. d4 $16) 28... Qxg2+ {[%emt 0:00:23]} 29. Kxg2 {[%emt 0:00:05]} Nb6 {[%emt 0:02:02]} 30. Rdc1 {[%emt 0:00:33]} Rd8 {[%emt 0:00:34] The position is equal.} 31. Rd1 {[%emt 0:01:38]} Ra7 {[%emt 0:00:47][%cal Ba6a7,Ba7d7,Bd7d4][%mdl 32]} 32. Kf3 {[%emt 0:00:14]} Rad7 {[%emt 0:00:55]} 33. Ke2 {[%emt 0:00:22]} Kf7 {[%emt 0:00:58]} 34. Be1 {[%emt 0:07:18]} Rd4 {[%emt 0:03:40]} 35. Bf2 {[%emt 0:01:25] Strongly threatening Nc4.} R4d7 {[%emt 0:00:07]} 36. Be1 {[%emt 0:00:10]} Rd4 {[%emt 0:05:37]} 37. Bf2 {[%emt 0:00:09] Weighted Error Value: White=0.11 (very precise) /Black=0.09 (flawless)} 1/2-1/2

[Event "FIDE WSCC 65 2022"]
[Site "Assisi"]
[Date "2022.11.19"]
[Round "5.12"]
[White "Cocozza, Mario"]
[Black "Strutinskaia, Galina"]
[Result "1/2-1/2"]
[ECO "B31"]
[WhiteElo "2298"]
[BlackElo "2137"]
[Annotator "TA"]
[PlyCount "44"]
[EventDate "2022.11.14"]
[EventType "swiss"]
[EventCountry "ITA"]
[SourceTitle "playchess.com"]
[Source "ChessBase"]
[SourceQuality "1"]
[TimeControl "40/5400+30:1800+30"]

{[%evp 10,44,17,4,19,2,21,20,5,8,12,8,16,0,0,0,0,0,0,0,14,-4,0,0,29,30,41,0,-5,-2,-5,-5,-11,-16,-27,-29,-33]} 1. e4 {[%emt 0:00:06]} c5 {[%emt 0:00:18]} 2. Nf3 {[%emt 0:00:08]} Nc6 {[%emt 0:00:03]} 3. Bb5 {[%emt 0:00:10]} g6 {[%emt 0:00:05]} 4. Bxc6 {[%emt 0:00:19]} bxc6 {[%emt 0:00:06]} 5. O-O {[%emt 0:00:26]} Bg7 {[%emt 0:00:06]} 6. c3 {[%emt 0:05:24]} d6 {[%emt 0:07:37] B31: Sicilian: 2...Nc6 3 Bb5 g6.} 7. d4 {[%emt 0:11:52] White wants to play dxc5.} cxd4 {[%emt 0:01:51]} 8. cxd4 {[%emt 0:00:25]} Nf6 {[%emt 0:08:07] The position is equal.} 9. Nc3 {[%emt 0:05:54]} O-O {[%emt 0:00:31]} 10. h3 {[%emt 0:03:14]} Nd7 {[%emt 0:02:10]} 11. Re1 {[%emt 0:05:26]} c5 {[%emt 0:08:57]} 12. Be3 {[%emt 0:11:19]} Bb7 {[%emt 0:07:52] [#]} 13. Qd2 $146 {[%emt 0:01:12]} ({Predecessor:} 13. Rc1 Qa5 14. a3 cxd4 15. Bxd4 Ne5 16. Nxe5 dxe5 17. Be3 Rfd8 18. Qb3 Rab8 19. Qa4 Qxa4 20. Nxa4 {1-0 (34) Vyskocil,N (2354)-Bakalarz,M (2321) Olomouc 2002}) 13... cxd4 {[%emt 0:06:16]} 14. Bxd4 {[%emt 0:00:49]} Nf6 {[%emt 0:00:44]} 15. Qd3 {[%emt 0:07:09]} Qa5 {[%emt 0:01:20]} 16. a3 {[%emt 0:03:54]} Qa6 {[%emt 0:05:14]} 17. Qxa6 {[%emt 0:11:14]} Bxa6 {[%emt 0:00:08] A strong pair of Bishops.} 18. Nd5 {[%emt 0:00:09]} (18. e5 $14 {deserves consideration.} dxe5 19. Rxe5) 18... Nxd5 $11 {[%emt 0:00:43]} 19. exd5 {[%emt 0:00:17]} Rfe8 {[%emt 0:08:25]} 20. Rac1 {[%emt 0:08:26]} Bb7 {[%emt 0:01:21]} 21. Rc7 {[%emt 0:01:28]} Bxd5 {[%emt 0:02:35]} 22. Bxg7 {[%emt 0:00:15]} Kxg7 {[%emt 0:00:34] Weighted Error Value: White=0.08 (flawless) /Black=0.06 (flawless)} 1/2-1/2

[Event "FIDE WSCC 65 2022"]
[Site "Assisi"]
[Date "2022.11.19"]
[Round "5.13"]
[White "Thuesen, Mogens"]
[Black "Roos, Louis"]
[Result "0-1"]
[ECO "D53"]
[WhiteElo "2115"]
[BlackElo "2293"]
[Annotator "TA"]
[PlyCount "112"]
[EventDate "2022.11.14"]
[EventType "swiss"]
[EventCountry "ITA"]
[SourceTitle "playchess.com"]
[Source "ChessBase"]
[SourceQuality "1"]
[TimeControl "40/5400+30:1800+30"]

{[%evp 17,112,2,10,9,12,0,0,0,0,-6,0,-40,-37,-35,-40,-43,-45,-60,-31,-39,-50,-39,-35,-37,-29,-32,-40,-35,0,-42,-37,-55,-46,-54,-49,-43,0,0,0,0,0,-3,-8,-5,-4,-34,-30,-28,-32,-28,-34,-35,-37,-158,-158,-158,-157,-205,-193,-185,-94,-237,-221,-289,-265,-605,-605,-659,-677,-658,-655,-598,-673,-626,-625,-633,-595,-609,-572,-546,-457,-430,-348,-332,-346,-339,-313,-313,-284,-1952,-1241,-1142,-946,-29970,-29969,-5431,-206]} 1. d4 {[%emt 0:00:23]} d5 {[%emt 0:01:54]} 2. c4 {[%emt 0:00:12]} c6 {[%emt 0:00:14]} 3. Nf3 {[%emt 0:00:20]} Nf6 {[%emt 0:01:43]} 4. Nc3 {[%emt 0:00:09]} e6 {[%emt 0:00:13]} 5. Bg5 {[%emt 0:02:04]} Be7 {[%emt 0:03:46]} 6. e3 {[%emt 0:00:14]} Nbd7 {[%emt 0:00:53]} 7. cxd5 {[%emt 0:06:41]} Nxd5 {[%emt 0:08:04]} 8. Bxe7 {[%emt 0:00:09]} Qxe7 {[%emt 0:00:10]} 9. Nxd5 {[%emt 0:07:05]} exd5 {[%emt 0:01:51]} 10. Bd3 {[%emt 0:00:18] D53: Queen's Gambit Declined: 4 Bg5 Be7: Early deviations.} Nf6 {[%emt 0:06:51]} 11. Ne5 {[%emt 0:01:52] [#]} Ne4 $146 {[%emt 0:06:16]} ({Predecessor:} 11... Qb4+ 12. Qd2 Qxd2+ 13. Kxd2 Ng4 14. Nxg4 Bxg4 15. b4 a6 16. Rhc1 Ke7 17. a4 Bd7 {½-½ (38) Vida,K (1839)-Nagy,I (1814) Hungary 2016}) 12. Bxe4 {[%emt 0:09:00] The position is equal.} dxe4 {[%emt 0:00:18]} 13. O-O {[%emt 0:03:24]} O-O {[%emt 0:01:27]} 14. f4 {[%emt 0:14:07]} exf3 {[%emt 0:05:11]} 15. Rxf3 {[%emt 0:05:11]} f6 {[%emt 0:12:09]} 16. Nd3 {[%emt 0:00:25]} Bg4 {[%emt 0:01:27][%cal Bc8g4,Bg4e6,Be6d5][%mdl 32] ...Rf7 is the strong threat.} 17. Qb3+ {[%emt 0:00:09]} Be6 {[%emt 0:00:11]} 18. Qc3 {[%emt 0:03:56]} Bd5 {[%emt 0:01:34]} 19. Rg3 {[%emt 0:00:10]} Rad8 {[%emt 0:00:45]} 20. a3 {[%emt 0:06:51]} Kh8 {[%emt 0:03:09]} 21. Qc5 {[%emt 0:02:53]} Qxc5 {[%emt 0:10:23]} 22. Nxc5 {[%emt 0:00:06]} Rfe8 {[%emt 0:00:53]} (22... b6 $5 {[%cal Rb6c5]} 23. Nd3 Rfe8 $15) 23. b4 {[%emt 0:03:18]} (23. Nxb7 $5 Rb8 24. Nd6 $11) 23... Re7 {[%emt 0:02:23]} 24. Kf2 {[%emt 0:00:37]} g6 {[%emt 0:02:37]} 25. Rc1 {[%emt 0:00:26]} Kg7 {[%emt 0:01:13]} 26. h4 {[%emt 0:05:41]} a5 {[%emt 0:08:26]} 27. bxa5 {[%emt 0:10:15]} Ra8 $1 {[%emt 0:00:09]} 28. Rb1 {[%emt 0:00:18]} Rxa5 {[%emt 0:00:15]} 29. Rxb7 {[%emt 0:00:20]} Rxb7 {[%emt 0:06:03]} 30. Nxb7 {[%emt 0:00:07]} Rxa3 $11 {[%emt 0:04:58][%mdl 4096] Endgame KRB-KRN} 31. Nc5 {[%emt 0:00:25]} (31. e4 $5 {[%cal Rg3a3]} Ra2+ 32. Ke3 $11) 31... Ra2+ {[%emt 0:00:44]} 32. Kg1 {[%emt 0:00:09]} f5 {[%emt 0:01:51]} 33. h5 {[%emt 0:00:14]} Kh6 {[%emt 0:02:55]} 34. hxg6 {[%emt 0:01:11]} hxg6 {[%emt 0:00:15][%cal Bh7g6,Bg6g5][%mdl 32]} 35. Nd3 {[%emt 0:01:00] [#]} (35. Nd7 $15) 35... g5 $1 $17 {[%emt 0:00:35] aiming for ...g4.} 36. Rh3+ {[%emt 0:08:13]} Kg7 {[%emt 0:01:26] Black has more active pieces.} 37. Nf2 {[%emt 0:04:16]} (37. Rh5 $17 {was called for.}) 37... Ra1+ {[%emt 0:03:19]} 38. Kh2 {[%emt 0:00:08]} Rf1 {[%emt 0:00:17] Against e4} ({Black should try} 38... Ra4 $19 39. Nd3 Ra2) 39. Nd3 {[%emt 0:01:45] Loses the game.} (39. e4 $17 {was the only defense.} fxe4 40. Ng4) 39... Rd1 $19 {[%emt 0:00:18]} 40. Ne5 {[%emt 0:01:38]} Rd2 {[%emt 0:01:04]} 41. Nf3 $2 {[%emt 0:33:53]} (41. Kg1 Rxg2+ 42. Kf1) 41... Re2 {[%emt 0:08:52] And now ...g4 would win.} 42. Rg3 {[%emt 0:00:00] Prevents g4.} g4 {[%emt 0:01:32]} ({Inferior is} 42... Rxe3 43. Nh4 Re4 44. Rxg5+ Kf7 45. Rxf5+ Ke6 46. Re5+ Rxe5 47. dxe5 $11) 43. Ne5 {[%emt 0:00:00]} Kf6 {[%emt 0:02:23]} 44. Nd3 {[%emt 0:00:00]} Be4 {[%emt 0:06:55]} 45. Nf4 {[%emt 0:00:00]} Re1 {[%emt 0:00:20]} 46. Nh5+ {[%emt 0:00:00]} Kg5 {[%emt 0:01:25]} 47. Nf4 {[%emt 0:00:00]} Rd1 {[%emt 0:02:03]} 48. Ne6+ {[%emt 0:00:00]} Kh6 {[%emt 0:00:33]} 49. Nc5 {[%emt 0:00:00]} Kh5 {[%emt 0:00:47] Hoping for ...Kh4.} 50. Ne6 {[%emt 0:00:00]} Bd5 {[%emt 0:01:04]} 51. Nf4+ {[%emt 0:00:00]} Kh6 {[%emt 0:00:19]} 52. Ne2 {[%emt 0:00:00]} Re1 {[%emt 0:00:41] Inhibits e4.} 53. Nc3 {[%emt 0:00:00]} (53. Nf4) 53... Kh5 {[%emt 0:02:31]} 54. Na4 {[%emt 0:00:00]} Kh4 {[%emt 0:02:01][%cal Oe1h1] ( -> ...Rh1+!)} 55. Nc3 {[%emt 0:00:00]} Be4 {[%emt 0:01:19]} 56. Na4 {[%emt 0:00:00] [#]} Rh1+ $3 {[%emt 0:00:51][%mdl 512] Weighted Error Value: White=0.48/Black=0.15 (very precise)} 0-1

[Event "FIDE WSCC 65 2022"]
[Site "Assisi"]
[Date "2022.11.19"]
[Round "5.14"]
[White "Binham, Timothy F."]
[Black "Taylor, Timothy"]
[Result "1-0"]
[ECO "B00"]
[WhiteElo "2284"]
[BlackElo "2118"]
[Annotator "TA"]
[PlyCount "95"]
[EventDate "2022.11.14"]
[EventType "swiss"]
[EventCountry "ITA"]
[SourceTitle "playchess.com"]
[Source "ChessBase"]
[SourceQuality "1"]
[TimeControl "40/5400+30:1800+30"]

{[%evp 10,95,62,59,66,66,68,71,62,74,78,68,92,88,100,92,98,61,75,74,93,79,112,42,81,-20,104,114,104,98,135,123,154,193,177,142,120,27,15,9,17,14,27,31,30,0,0,18,29,24,22,25,138,108,109,118,120,105,88,92,147,149,247,253,264,262,257,243,367,266,444,440,450,446,576,553,492,439,1772,1765,1655,1520,29968,29969,29987,29988,29996,547]} 1. e4 {[%emt 0:00:04]} e6 {[%emt 0:00:54]} 2. Nf3 {[%emt 0:01:15]} b6 {[%emt 0:00:42]} 3. d4 {[%emt 0:00:26]} Bb7 {[%emt 0:00:04]} 4. Bd3 {[%emt 0:00:05]} d6 {[%emt 0:02:49]} 5. O-O {[%emt 0:02:49]} Nd7 {[%emt 0:00:16]} 6. c4 {[%emt 0:01:19]} (6. d5 {is more complex.} exd5 7. exd5 Bxd5 8. Nd4) 6... g6 {[%emt 0:00:24] B00: Queen's Fianchetto Defence, Nimzowitsch Defence.} 7. Nc3 {[%emt 0:01:35]} Bg7 {[%emt 0:00:08]} 8. Bg5 {[%emt 0:09:13]} Ne7 {[%emt 0:00:09] White is better.} 9. Qd2 {[%emt 0:01:17]} h6 {[%emt 0:00:07]} 10. Be3 {[%emt 0:00:34]} a6 {[%emt 0:09:09]} 11. Rad1 {[%emt 0:06:42]} g5 {[%emt 0:01:22] [#]} 12. d5 $146 {[%emt 0:03:09]} ({Predecessor:} 12. Ne1 Ng6 13. e5 dxe5 14. Bxg6 fxg6 15. dxe5 Nxe5 16. Qe2 Qe7 17. Bd4 Qf6 18. f4 gxf4 {0-1 (35) Biro,Z (2065)-Rinyu,J (2058) Hungary 2010}) 12... e5 {[%emt 0:01:14]} 13. h4 {[%emt 0:06:23] White is more active.} Ng6 {[%emt 0:07:19]} 14. hxg5 {[%emt 0:02:01]} hxg5 {[%emt 0:00:05]} 15. Bxg5 {[%emt 0:01:11]} Nf6 {[%emt 0:05:15]} 16. Rfe1 {[%emt 0:13:32]} (16. Ne2 $16) 16... Qd7 $14 {[%emt 0:07:33]} 17. Be2 {[%emt 0:00:52]} (17. b4 $16) 17... Nh5 {[%emt 0:04:14] [#]} (17... Ng4 $11 {keeps the balance.}) 18. Nh2 $1 $16 {[%emt 0:01:48] Black must now prevent Bg4.} f6 {[%emt 0:01:48]} 19. Bg4 {[%emt 0:01:30]} Qe7 {[%emt 0:00:48]} 20. Be3 {[%emt 0:00:25]} Nhf4 {[%emt 0:06:59]} 21. g3 {[%emt 0:02:45]} Bh6 {[%emt 0:03:14][%cal Oe7h7]} 22. f3 {[%emt 0:04:59]} Nh3+ {[%emt 0:02:52]} 23. Bxh3 {[%emt 0:06:44]} (23. Kg2 $16 Qg7 24. Rh1 (24. Bxh6 Rxh6 25. Qc2 Qh7 $16)) 23... Bxe3+ $11 {[%emt 0:01:27]} 24. Rxe3 {[%emt 0:06:10]} (24. Qxe3 {looks sharper.} Rxh3 25. Kg2 Bc8 26. Rh1) 24... Rxh3 {[%emt 0:43:38]} 25. Qg2 {[%emt 0:00:52]} Rh5 {[%emt 0:00:00]} 26. Kf2 $36 {[%emt 0:08:12][%mdl 2048] Black is under pressure.} O-O-O {[%emt 0:00:00]} 27. Ree1 {[%emt 0:01:02]} Kb8 {[%emt 0:00:00]} 28. Rh1 {[%emt 0:02:32]} Rg5 {[%emt 0:00:00]} 29. Ng4 {[%emt 0:05:19]} Bc8 {[%emt 0:00:00]} 30. Ne3 {[%emt 0:02:02]} Rg8 {[%emt 0:00:00]} (30... f5 $1 $11) 31. Rdg1 $16 {[%emt 0:01:43]} f5 {[%emt 0:00:00]} 32. exf5 {[%emt 0:01:29]} Bxf5 {[%emt 0:00:00] [#] Threatens to win with ...Bd3.} 33. Qf1 {[%emt 0:00:47][%cal Oc4c5] Against Bd3} Nf8 {[%emt 0:00:00]} 34. c5 {[%emt 0:03:11]} Bc8 {[%emt 0:00:00]} (34... Nd7 $142) 35. Ne4 {[%emt 0:00:13]} dxc5 {[%emt 0:00:00]} (35... bxc5 $16 {was called for.} 36. Nxg5 Qxg5) 36. Nxg5 $18 {[%emt 0:00:22]} Qxg5 {[%emt 0:00:00]} 37. Qd3 {[%emt 0:00:27]} Qf6 {[%emt 0:00:00]} 38. Qe4 {[%emt 0:00:33]} Qd6 {[%emt 0:00:00]} (38... b5 {might work better.} 39. b3 Nd7) 39. Rh5 {[%emt 0:00:22] And now Rgh1 would win.} Ng6 $2 {[%emt 0:00:00]} (39... Nd7 {was worth a try.} 40. Nc4 Qf8) 40. Rh6 {[%emt 0:00:42]} Qf6 {[%emt 0:00:04]} 41. Rgh1 {[%emt 0:30:31]} Qg7 {[%emt 0:30:12]} 42. Rh7 {[%emt 0:01:06]} Qf8 {[%emt 0:00:13]} 43. R1h6 {[%emt 0:01:03]} Qe8 {[%emt 0:00:16]} (43... Qf6 $142 44. b3 b5) 44. Nc4 {[%emt 0:00:00] Hoping for d6.} Qa4 {[%emt 0:00:00]} 45. d6 {[%emt 0:00:00]} cxd6 {[%emt 0:00:00]} 46. Rxg6 {[%emt 0:00:00] White mates.} Rxg6 {[%emt 0:00:00]} 47. Qxg6 {[%emt 0:00:00]} Qxc4 {[%emt 0:00:00]} 48. Qxd6+ {[%emt 0:00:00] Weighted Error Value: White=0.17 (very precise) /Black=0.43} 1-0

[Event "FIDE WSCC 65 2022"]
[Site "Assisi"]
[Date "2022.11.19"]
[Round "5.15"]
[White "Lanc, Alois"]
[Black "Tocco, Paolo"]
[Result "0-1"]
[ECO "B00"]
[WhiteElo "2268"]
[BlackElo "2033"]
[Annotator "TA"]
[PlyCount "58"]
[EventDate "2022.11.14"]
[EventType "swiss"]
[EventCountry "ITA"]
[SourceTitle "playchess.com"]
[Source "ChessBase"]
[SourceQuality "1"]
[TimeControl "40/5400+30:1800+30"]

{[%evp 9,58,83,80,69,67,65,61,52,70,64,54,54,64,41,113,83,116,99,113,51,43,49,96,86,82,84,97,96,102,106,109,38,31,34,32,-66,74,75,89,58,190,177,189,201,199,-15,-17,-168,-170,-278,-283]} 1. e4 {[%emt 0:00:03]} Nc6 {[%emt 0:01:39]} 2. Nf3 {[%emt 0:01:57]} f5 {[%emt 0:00:18]} 3. exf5 {[%emt 0:03:00]} d5 {[%emt 0:00:05]} 4. Bb5 {[%emt 0:01:44]} Bxf5 {[%emt 0:00:47]} 5. d4 {[%emt 0:04:48]} e6 {[%emt 0:00:59]} 6. O-O {[%emt 0:02:23] B00: Queen's Fianchetto Defence, Nimzowitsch Defence.} (6. Ne5 {is more complex.} Nge7 7. Nc3 a6 8. Ba4) 6... Bd6 {[%emt 0:04:44]} 7. c4 {[%emt 0:08:09]} dxc4 $1 {[%emt 0:03:34] [#]} 8. Nc3 $146 {[%emt 0:02:58] d5 is the strong threat. White is slightly better.} ({Predecessor:} 8. d5 exd5 9. Nd4 Nge7 10. Nxf5 Nxf5 11. Re1+ Kf8 12. Qf3 Ncd4 13. Qh3 Qh4 14. Qxh4 Nxh4 {0-1 (20) Colbow,C (2068)-Schneider,I (2512) Playchess.com INT 2021}) 8... Nge7 {[%emt 0:05:47]} 9. Re1 {[%emt 0:06:03]} O-O {[%emt 0:05:35]} 10. Bxc4 {[%emt 0:00:54]} Qd7 {[%emt 0:15:04]} 11. Qe2 {[%emt 0:08:32]} Nd8 {[%emt 0:12:20]} ({Black should try} 11... Rae8 $14) 12. h3 {[%emt 0:02:48]} Nec6 {[%emt 0:11:36]} 13. a3 {[%emt 0:06:35]} Kh8 {[%emt 0:04:03]} 14. g4 {[%emt 0:18:58]} ({Better is} 14. Be3 $16) 14... Bg6 $14 {[%emt 0:00:15][%cal Of8f3]} 15. Be3 {[%emt 0:00:14]} e5 {[%emt 0:16:15]} (15... Nf7 $14 {was preferrable.}) 16. dxe5 $16 {[%emt 0:03:57]} Nxe5 {[%emt 0:02:50]} 17. Nxe5 {[%emt 0:00:12]} Bxe5 {[%emt 0:00:07]} 18. Rad1 {[%emt 0:03:08]} Qc6 {[%emt 0:02:12]} 19. Bd5 {[%emt 0:03:59]} Qf6 {[%emt 0:00:26]} 20. Bg2 {[%emt 0:04:11]} (20. Qd2 $16) 20... Ne6 $14 {[%emt 0:03:50] Prevents Bg5.} 21. Nd5 $36 {[%emt 0:02:33][%mdl 2048] White has the initiative.} Qh4 {[%emt 0:02:01]} 22. Rf1 {[%emt 0:04:34]} (22. Qd2 $14 c6 23. f4 cxd5 24. fxe5) 22... Bd6 {[%emt 0:01:27] [#] Black is more active.} (22... Rae8 $1 $15 {keeps the upper hand.} 23. Qd2 Rf3) 23. f4 $1 $16 {[%emt 0:03:35] Threatens to win with Bf2.} Rae8 {[%emt 0:02:32][%cal Oe6f4]} 24. Qd2 {[%emt 0:04:01]} Nc5 {[%emt 0:01:07] [#]} ({Black should play} 24... Bf7 $14) 25. Bf2 $1 $18 {[%emt 0:01:00]} (25. Nxc7 $6 Ne4 26. Qa5 b6 27. Qxa7 (27. Nxe8 bxa5 28. Nxd6 Nxd6 $11) 27... Re7 $16) 25... Qd8 {[%emt 0:00:42]} 26. f5 {[%emt 0:00:39]} Bf7 {[%emt 0:00:07][%cal Bg6f7,Bf7b3,Bb3d1][%mdl 32]} 27. Nc3 {[%emt 0:01:09] Against Ne4} (27. f6 $18 Ne6 28. fxg7+ (28. Bxa7 b6 $16) 28... Nxg7 29. Bd4 (29. Bxa7 b6 $14) 29... Bxd5 30. Bxd5 (30. Bxg7+ Kxg7 31. Bxd5 Qh4 $11)) 27... Bb3 $11 {[%emt 0:00:19]} 28. f6 $2 {[%emt 0:01:12]} (28. Qd4 $11 {and White has nothing to worry.}) 28... gxf6 $19 {[%emt 0:00:56]} ({Stronger than} 28... Qxf6 29. Rde1 $17) 29. Bd4 {[%emt 0:00:45]} (29. Nb5 $142 Bxd1 30. Rxd1) 29... Bxd1 {[%emt 0:00:13] Weighted Error Value: White=0.38/Black=0.19 (very precise)} 0-1